[Event "GER-ch-Seniors-50 2019"]
[Site "Radebeul"]
[Date "2019.05.01"]
[Round "6.2"]
[White "Koehler, Gerhard"]
[Black "Mueller, Michael"]
[Result "1-0"]
[ECO "D35"]
[WhiteElo "2153"]
[BlackElo "2163"]
[Annotator "NA"]
[PlyCount "223"]
[EventDate "2019.04.26"]
[EventType "swiss"]
[EventCountry "GER"]
[SourceTitle "playchess.com"]
[Source "ChessBase"]
[SourceQuality "1"]
[TimeControl "40/5400+30:1800+30"]

1. c4 {[%emt 0:00:00]} e6 {[%emt 0:00:00]} 2. Nc3 {[%emt 0:00:00]} d5 {[%emt 0:00:12]} 3. cxd5 {[%emt 0:01:07]} exd5 {[%emt 0:00:23]} 4. d4 {[%emt 0:00:04]} Nf6 {[%emt 0:00:19]} 5. Bg5 {[%emt 0:00:15]} Be7 {[%emt 0:00:24]} 6. e3 {[%emt 0:00:21]} O-O {[%emt 0:01:12]} 7. Bd3 {[%emt 0:00:38]} c6 {[%emt 0:01:09]} 8. Nge2 {[%emt 0:01:26]} Re8 {[%emt 0:01:01]} 9. Qc2 {[%emt 0:02:39]} h6 {[%emt 0:00:53]} 10. Bh4 {[%emt 0:02:27]} Nbd7 {[%emt 0:01:41]} 11. O-O {[%emt 0:04:51]} Nf8 {[%emt 0:03:46]} 12. f3 {[%emt 0:03:58]} Ne6 {[%emt 0:02:51]} 13. Rad1 {[%emt 0:03:31]} b6 {[%emt 0:08:19]} 14. Qa4 {[%emt 0:05:07]} Bb7 {[%emt 0:01:41]} 15. Bb1 {[%emt 0:00:19]} Nf8 {[%emt 0:07:37]} 16. Qc2 {[%emt 0:01:09]} Rc8 $11 {[%emt 0:04:27]} 17. e4 {[%emt 0:13:04]} dxe4 {[%emt 0:01:34]} 18. Bxf6 {[%emt 0:00:15]} Bxf6 {[%emt 0:00:53]} 19. fxe4 {[%emt 0:00:06]} Bg5 {[%emt 0:07:10]} 20. Qd3 {[%emt 0:01:25]} Rc7 {[%emt 0:01:25]} 21. e5 {[%emt 0:09:37]} Rd7 {[%emt 0:02:09]} 22. Ne4 {[%emt 0:05:34]} c5 {[%emt 0:03:52]} 23. Nd6 {[%emt 0:04:22]} Rxd6 {[%emt 0:02:51]} 24. exd6 {[%emt 0:00:02]} Qxd6 {[%emt 0:00:29]} 25. d5 {[%emt 0:03:58]} Qc7 {[%emt 0:13:47]} 26. Nc3 {[%emt 0:02:57]} c4 {[%emt 0:01:32]} 27. Qf5 {[%emt 0:03:27]} Re5 {[%emt 0:00:52]} 28. Qf3 {[%emt 0:05:32]} Qe7 {[%emt 0:05:09]} 29. Kh1 {[%emt 0:01:39]} Qd7 {[%emt 0:06:24]} 30. Rfe1 {[%emt 0:05:49]} Rxe1+ {[%emt 0:03:33]} 31. Rxe1 {[%emt 0:00:20]} g6 {[%emt 0:00:26]} 32. Rd1 {[%emt 0:04:38]} f5 {[%emt 0:01:08]} 33. a4 {[%emt 0:04:27]} a6 {[%emt 0:00:29]} 34. Qf2 {[%emt 0:02:30]} Qd6 {[%emt 0:02:29]} 35. Qd4 {[%emt 0:01:07]} Qc7 {[%emt 0:02:47]} 36. d6 {[%emt 0:01:35]} Qc6 {[%emt 0:00:26]} 37. Qd5+ {[%emt 0:00:13]} Qxd5 {[%emt 0:00:48]} 38. Nxd5 {[%emt 0:00:02]} Nd7 {[%emt 0:01:37]} 39. Ba2 {[%emt 0:00:42]} b5 {[%emt 0:00:09]} 40. axb5 {[%emt 0:04:54]} axb5 {[%emt 0:00:53]} 41. Kg1 {[%emt 0:03:57]} Kf7 {[%emt 0:00:00]} 42. Nc7 {[%emt 0:07:48]} Bc6 {[%emt 0:01:23]} 43. Re1 {[%emt 0:04:11]} Bf6 {[%emt 0:03:13]} 44. b3 {[%emt 0:02:14]} Nc5 {[%emt 0:03:13]} 45. bxc4 {[%emt 0:01:13]} b4 {[%emt 0:00:08]} 46. Nd5 {[%emt 0:01:28]} b3 {[%emt 0:04:59]} 47. Nxf6 {[%emt 0:01:32]} Kxf6 {[%emt 0:00:53]} 48. Bb1 {[%emt 0:00:36]} Be4 {[%emt 0:01:14]} 49. Bxe4 {[%emt 0:01:03]} fxe4 {[%emt 0:00:21]} 50. Rd1 {[%emt 0:02:52]} Nd3 {[%emt 0:01:52]} 51. Kf1 {[%emt 0:01:22]} Ke6 {[%emt 0:00:17]} 52. d7 {[%emt 0:01:51]} Kxd7 {[%emt 0:00:18]} 53. Ke2 {[%emt 0:00:11]} Kc6 {[%emt 0:00:51]} 54. Kd2 {[%emt 0:00:59]} Kc5 {[%emt 0:01:20]} 55. Kc3 {[%emt 0:00:13]} b2 {[%emt 0:00:24]} 56. g4 {[%emt 0:01:22]} h5 {[%emt 0:01:09]} 57. gxh5 {[%emt 0:00:25]} gxh5 {[%emt 0:00:02]} 58. Rf1 Kd6 59. Rd1 {[%emt 0:08:17]} Ke5 {[%emt 0:04:50]} 60. Rf1 {[%emt 0:00:30]} Ke6 {[%emt 0:01:23]} 61. Kc2 {[%emt 0:00:39]} Ke5 {[%emt 0:00:58]} 62. Kc3 {[%emt 0:00:51]} Ke6 {[%emt 0:01:47]} 63. Rb1 {[%emt 0:00:41]} Ke5 {[%emt 0:02:07]} 64. c5 {[%emt 0:00:38]} Nxc5 {[%emt 0:00:33]} 65. Kxb2 {[%emt 0:00:01]} Kd4 {[%emt 0:00:39]} 66. Kc2 {[%emt 0:00:14]} Nd3 {[%emt 0:01:12]} 67. Rb8 {[%emt 0:00:52]} Ke3 {[%emt 0:00:18]} 68. Rg8 {[%emt 0:00:45]} Ne1+ {[%emt 0:00:32]} 69. Kd1 {[%emt 0:00:19]} Nf3 {[%emt 0:00:07]} 70. Rg2 {[%emt 0:00:30]} h4 {[%emt 0:00:29]} 71. Ra2 {[%emt 0:00:13]} Kf4 {[%emt 0:00:33]} 72. Rb2 {[%emt 0:00:15]} Ke3 {[%emt 0:00:30]} 73. Ra2 {[%emt 0:00:06]} h3 {[%emt 0:01:57]} 74. Rb2 {[%emt 0:00:03]} Kf4 {[%emt 0:00:26]} 75. Ra2 {[%emt 0:00:15]} Nd4 {[%emt 0:02:33]} 76. Ke1 {[%emt 0:00:47]} Kf3 {[%emt 0:00:24]} 77. Kf1 {[%emt 0:01:27]} e3 {[%emt 0:00:37]} 78. Ra3 {[%emt 0:00:46]} Ke4 {[%emt 0:00:29]} 79. Ra2 {[%emt 0:00:29]} Kd3 {[%emt 0:00:18]} 80. Ra3+ {[%emt 0:00:29]} Ke4 {[%emt 0:00:39]} 81. Ra2 {[%emt 0:00:11]} Ne6 {[%emt 0:01:10]} 82. Ra4+ {[%emt 0:00:18]} Kf3 {[%emt 0:00:21]} 83. Ra3 {[%emt 0:00:53]} Nd4 {[%emt 0:00:52]} 84. Rd3 {[%emt 0:00:58]} Nf5 {[%emt 0:01:21]} 85. Ra3 {[%emt 0:00:22]} Nh6 {[%emt 0:01:11]} 86. Ra8 {[%emt 0:00:54]} Nf5 {[%emt 0:01:07]} 87. Rh8 {[%emt 0:00:36]} e2+ {[%emt 0:02:01]} 88. Ke1 {[%emt 0:00:06]} Kg2 {[%emt 0:00:11]} 89. Kxe2 {[%emt 0:00:12]} Kxh2 {[%emt 0:00:13]} 90. Kf2 {[%emt 0:00:31]} Nd4 {[%emt 0:00:49]} 91. Rh4 {[%emt 0:00:23]} Nf5 {[%emt 0:00:10]} 92. Ra4 {[%emt 0:00:29]} Nd6 {[%emt 0:00:21]} 93. Rd4 {[%emt 0:00:26]} Nf5 {[%emt 0:00:11]} 94. Rd3 {[%emt 0:00:25]} Nh4 {[%emt 0:00:11]} 95. Ra3 {[%emt 0:00:47]} Ng6 {[%emt 0:00:16]} 96. Ra2 {[%emt 0:00:12]} Nh4 {[%emt 0:00:30]} 97. Rb2 {[%emt 0:00:13]} Nf5 {[%emt 0:00:23]} 98. Kf3+ {[%emt 0:00:27]} Kg1 {[%emt 0:00:13]} 99. Rb1+ {[%emt 0:00:01]} Kh2 {[%emt 0:00:11]} 100. Ra1 {[%emt 0:00:18]} Nh6 {[%emt 0:00:42]} 101. Ra2+ {[%emt 0:00:12]} Kg1 {[%emt 0:00:13]} 102. Kg3 {[%emt 0:00:22]} Nf5+ {[%emt 0:00:13]} 103. Kxh3 {[%emt 0:00:09]} Kf1 {[%emt 0:00:12]} 104. Kg4 {[%emt 0:00:18]} Nd4 {[%emt 0:00:20]} 105. Kf4 {[%emt 0:00:12]} Ne6+ {[%emt 0:00:28]} 106. Kf3 {[%emt 0:00:27]} Nd4+ {[%emt 0:00:16]} 107. Ke4 {[%emt 0:00:39]} Ne6 {[%emt 0:00:17]} 108. Ra5 {[%emt 0:00:45]} Kf2 {[%emt 0:00:32]} 109. Re5 {[%emt 0:01:03]} Nd8 {[%emt 0:00:33]} 110. Kd5 {[%emt 0:00:25]} Kg3 {[%emt 0:00:21]} 111. Re7 {[%emt 0:01:01]} Kf4 {[%emt 0:00:14]} 112. Rd7 {[%emt 0:00:11]} 1-0

[Event "GER-ch-Seniors-50 2019"]
[Site "Radebeul"]
[Date "2019.05.01"]
[Round "6.3"]
[White "Steiger, Michael"]
[Black "Stahr, Ralf-Peter"]
[Result "0-1"]
[ECO "A15"]
[WhiteElo "1982"]
[BlackElo "2160"]
[Annotator "NA"]
[PlyCount "36"]
[EventDate "2019.04.26"]
[EventType "swiss"]
[EventCountry "GER"]
[SourceTitle "playchess.com"]
[Source "ChessBase"]
[SourceQuality "1"]
[TimeControl "40/5400+30:1800+30"]

1. c4 {[%emt 0:00:00]} Nf6 {[%emt 0:00:55]} 2. Nf3 {[%emt 0:00:03]} e6 {[%emt 0:00:10]} 3. g3 {[%emt 0:00:43]} d5 {[%emt 0:00:10]} 4. Bg2 {[%emt 0:00:47]} c5 {[%emt 0:00:34]} 5. cxd5 {[%emt 0:00:55]} Nxd5 {[%emt 0:00:26]} 6. O-O {[%emt 0:01:04]} Nc6 {[%emt 0:00:09]} 7. d4 {[%emt 0:02:08]} Qb6 {[%emt 0:04:24]} 8. e4 {[%emt 0:03:45]} Nf6 {[%emt 0:03:44]} 9. dxc5 {[%emt 0:06:15]} Bxc5 {[%emt 0:00:12]} 10. Nc3 {[%emt 0:05:32]} Bb4 {[%emt 0:01:34]} 11. Be3 {[%emt 0:05:37]} Qa5 {[%emt 0:04:00]} 12. Rc1 {[%emt 0:12:41]} O-O {[%emt 0:13:52]} 13. Qc2 {[%emt 0:13:28]} Bxc3 {[%emt 0:02:29]} 14. bxc3 {[%emt 0:00:43]} e5 {[%emt 0:01:35]} 15. Bg5 {[%emt 0:03:52]} Nd7 {[%emt 0:01:39]} 16. Rfd1 {[%emt 0:02:32]} Nb6 {[%emt 0:02:00]} 17. Nh4 {[%emt 0:02:56]} Be6 {[%emt 0:00:56]} 18. Rd5 {[%emt 0:00:07]} Nxd5 {[%emt 0:06:02]} 0-1

[Event "GER-ch-Seniors-50 2019"]
[Site "Radebeul"]
[Date "2019.05.01"]
[Round "6.5"]
[White "Wenner, Tobias"]
[Black "Pirrot, Dieter"]
[Result "1-0"]
[ECO "A06"]
[WhiteElo "2108"]
[BlackElo "2334"]
[Annotator "NA"]
[PlyCount "99"]
[EventDate "2019.04.26"]
[EventType "swiss"]
[EventCountry "GER"]
[SourceTitle "playchess.com"]
[Source "ChessBase"]
[SourceQuality "1"]
[TimeControl "40/5400+30:1800+30"]

1. Nf3 {[%emt 0:00:00]} d5 {[%emt 0:00:00]} 2. g3 {[%emt 0:00:00]} Nc6 {[%emt 0:00:18]} 3. d4 {[%emt 0:01:10]} Bg4 {[%emt 0:00:59]} 4. Nbd2 {[%emt 0:03:08]} (4. Bg2 e6 5. O-O Bd6 6. c4 Nf6 7. Nc3 O-O 8. cxd5 Nxd5 9. h3 Bh5 10. e4 Nxc3 11. bxc3 Rb8 12. Rb1 f6 13. Be3 b6 14. Qc2 e5 15. Nh4 Na5 16. Nf5 Nc4 {0-1 (48) Smirin,I (2609)-Yakubboev,N (2556) St Petersburg 2018}) 4... e6 {[%emt 0:02:08]} 5. Bg2 {[%emt 0:00:48]} Nf6 {[%emt 0:01:20]} 6. c3 {[%emt 0:02:44] D02: 1 d4 d5 2 Nf3 sidelines, including 2...Nf6 3 g3 and 2...Nf6 3 Bf4} Bd6 {[%emt 0:02:25]} 7. h3 {[%emt 0:04:26]} Bh5 {[%emt 0:01:01]} 8. g4 {[%emt 0:01:30]} Bg6 {[%emt 0:00:09]} 9. Nh4 {[%emt 0:00:43]} Be4 {[%emt 0:05:58]} 10. Nxe4 {[%emt 0:01:35]} Nxe4 {[%emt 0:00:12]} 11. Nf3 {[%emt 0:00:24]} h5 $146 {[%emt 0:00:36]} ({Predecessor:} 11... O-O) 12. Be3 {[%emt 0:05:55]} Qe7 {[%emt 0:12:35]} 13. Nd2 {[%emt 0:08:01]} hxg4 {[%emt 0:12:55]} 14. Nxe4 {[%emt 0:01:09]} dxe4 {[%emt 0:00:09]} 15. hxg4 {[%emt 0:00:24]} Rxh1+ {[%emt 0:00:17]} 16. Bxh1 {[%emt 0:00:02]} f5 {[%emt 0:00:14]} 17. Qd2 {[%emt 0:06:37]} Qh4 {[%emt 0:08:06]} 18. O-O-O {[%emt 0:00:16]} O-O-O {[%emt 0:01:01]} 19. f3 {[%emt 0:15:47]} Be7 {[%emt 0:11:49]} 20. gxf5 {[%emt 0:03:47]} Ne5 {[%emt 0:00:38]} 21. Qe1 {[%emt 0:05:19]} Nc4 {[%emt 0:05:22]} 22. Qxh4 {[%emt 0:00:23]} Bxh4 {[%emt 0:00:09]} 23. Bf4 {[%emt 0:00:28]} exf5 {[%emt 0:10:48]} 24. b3 {[%emt 0:04:35]} exf3 {[%emt 0:00:31]} 25. Bxf3 {[%emt 0:00:21]} Nb6 {[%emt 0:03:09]} 26. Rg1 {[%emt 0:00:31]} Rg8 {[%emt 0:04:43]} 27. Rg6 {[%emt 0:02:54]} c6 {[%emt 0:00:26]} 28. Be5 {[%emt 0:03:41]} Nd5 {[%emt 0:01:44]} 29. Bxd5 {[%emt 0:00:35]} cxd5 {[%emt 0:00:06]} 30. Rxg7 {[%emt 0:00:33]} Rxg7 {[%emt 0:00:12]} 31. Bxg7 {[%emt 0:00:02]} b5 {[%emt 0:03:12]} 32. Kc2 {[%emt 0:01:36]} Kd7 {[%emt 0:00:40]} 33. a4 {[%emt 0:03:49]} a6 {[%emt 0:03:47]} 34. axb5 {[%emt 0:00:57]} axb5 {[%emt 0:00:08]} 35. c4 {[%emt 0:03:44]} bxc4 {[%emt 0:00:17]} 36. bxc4 {[%emt 0:02:49]} Kc6 {[%emt 0:05:10]} 37. Kd3 {[%emt 0:00:53]} Bg5 {[%emt 0:00:16]} 38. Be5 {[%emt 0:01:25]} Bh6 {[%emt 0:00:30]} 39. c5 {[%emt 0:00:49]} Bg5 {[%emt 0:00:21]} 40. e3 {[%emt 0:06:22]} Kd7 {[%emt 0:00:52]} 41. Ke2 {[%emt 0:30:15]} Kc6 {[%emt 0:30:45]} 42. Kf3 {[%emt 0:00:09]} Kd7 {[%emt 0:01:24]} 43. Bf4 {[%emt 0:00:38]} Bd8 {[%emt 0:02:25]} 44. Kg3 {[%emt 0:02:26]} Be7 {[%emt 0:00:00]} 45. Bh6 {[%emt 0:00:00]} Ke6 {[%emt 0:00:00]} 46. Kf4 {[%emt 0:00:00]} Bd8 {[%emt 0:00:00]} 47. Bg7 {[%emt 0:00:00]} Bh4 {[%emt 0:00:00]} 48. Be5 {[%emt 0:00:00]} Bf2 {[%emt 0:00:00]} 49. c6 {[%emt 0:00:00]} Bg1 {[%emt 0:00:00]} 50. Kf3 {[%emt 0:00:00]} 1-0

[Event "GER-ch-Seniors-50 2019"]
[Site "Radebeul"]
[Date "2019.05.01"]
[Round "6.6"]
[White "Redzepovic, Irfan"]
[Black "Loew, Gerald"]
[Result "1-0"]
[ECO "A88"]
[WhiteElo "2075"]
[BlackElo "2157"]
[Annotator "NA"]
[PlyCount "145"]
[EventDate "2019.04.26"]
[EventType "swiss"]
[EventCountry "GER"]
[SourceTitle "playchess.com"]
[Source "ChessBase"]
[SourceQuality "1"]
[TimeControl "40/5400+30:1800+30"]

1. d4 {[%emt 0:00:00]} d6 {[%emt 0:00:00]} 2. Nf3 {[%emt 0:00:00]} f5 {[%emt 0:01:15]} 3. c4 {[%emt 0:06:30]} Nf6 {[%emt 0:01:11]} 4. Nc3 {[%emt 0:00:10]} g6 {[%emt 0:00:39]} 5. g3 {[%emt 0:03:25]} Bg7 {[%emt 0:00:12]} 6. Bg2 {[%emt 0:00:05]} O-O {[%emt 0:00:14]} 7. O-O {[%emt 0:00:06]} c6 {[%emt 0:00:17]} 8. Rb1 {[%emt 0:05:18]} Qc7 {[%emt 0:06:33]} 9. c5 {[%emt 0:04:26]} Kh8 {[%emt 0:05:11]} 10. b4 {[%emt 0:01:43]} Be6 {[%emt 0:02:35]} 11. Qc2 {[%emt 0:06:19]} Bg8 {[%emt 0:01:43]} 12. Bf4 {[%emt 0:03:18]} Nh5 {[%emt 0:04:36]} 13. Bd2 {[%emt 0:02:34]} Nd7 14. Rfd1 {[%emt 0:03:07]} Rae8 {[%emt 0:20:54]} 15. Bc1 {[%emt 0:04:47]} a6 {[%emt 0:10:25]} 16. a4 {[%emt 0:03:47]} a5 {[%emt 0:08:11]} 17. cxd6 {[%emt 0:05:19]} exd6 {[%emt 0:00:41]} 18. bxa5 {[%emt 0:00:57]} Bc4 {[%emt 0:06:47]} 19. Ba3 {[%emt 0:01:47]} Ndf6 {[%emt 0:05:49]} 20. e3 {[%emt 0:06:25]} Rf7 {[%emt 0:07:42]} 21. Nd2 {[%emt 0:02:17]} Ba6 {[%emt 0:01:05]} 22. Rdc1 {[%emt 0:01:49]} Rd7 {[%emt 0:02:54]} 23. Rb6 {[%emt 0:01:32]} d5 {[%emt 0:05:04]} 24. Nb3 {[%emt 0:03:19]} Bh6 {[%emt 0:02:56]} 25. Nd1 {[%emt 0:05:03]} f4 {[%emt 0:02:30]} 26. Nc5 {[%emt 0:04:08]} fxe3 {[%emt 0:00:41]} 27. fxe3 {[%emt 0:01:00]} Bc4 {[%emt 0:02:23]} 28. Rcb1 {[%emt 0:03:04]} Nxg3 {[%emt 0:00:53]} 29. Rxb7 {[%emt 0:03:21]} Ne2+ {[%emt 0:00:18]} 30. Kh1 {[%emt 0:01:14]} Ng3+ {[%emt 0:00:10]} 31. hxg3 {[%emt 0:00:25]} Qxg3 {[%emt 0:00:05]} 32. Qf2 {[%emt 0:00:08]} Rxb7 {[%emt 0:01:25]} 33. Nxb7 {[%emt 0:02:14]} Qg5 {[%emt 0:00:34]} 34. Nd6 {[%emt 0:02:02]} Rf8 {[%emt 0:00:31]} 35. Kg1 {[%emt 0:00:10]} Bd3 {[%emt 0:00:30]} 36. Rb3 {[%emt 0:01:52]} Be4 {[%emt 0:00:28]} 37. Rb2 {[%emt 0:01:19]} Qh5 {[%emt 0:00:32]} 38. Rd2 {[%emt 0:02:43]} Ng4 {[%emt 0:00:24]} 39. Qg3 {[%emt 0:00:38]} Bxg2 {[%emt 0:00:38]} 40. Rxg2 {[%emt 0:00:00]} Nxe3 {[%emt 0:00:27]} 41. Nxe3 {[%emt 0:31:15]} Rf3 {[%emt 0:03:16]} 42. Qe5+ {[%emt 0:00:00]} Qxe5 {[%emt 0:01:23]} 43. dxe5 {[%emt 0:00:00]} Bxe3+ {[%emt 0:00:36]} 44. Kh1 {[%emt 0:00:00]} Rf1+ {[%emt 0:04:04]} 45. Kh2 {[%emt 0:00:00]} Bf4+ {[%emt 0:00:38]} 46. Kh3 {[%emt 0:00:00]} Bxe5 {[%emt 0:07:21]} 47. Re2 {[%emt 0:00:00]} Rh1+ {[%emt 0:09:40]} 48. Kg2 {[%emt 0:00:00]} Rh2+ {[%emt 0:00:23]} 49. Kf1 {[%emt 0:00:00]} Rh1+ {[%emt 0:00:23]} 50. Kf2 {[%emt 0:00:00]} Rh2+ {[%emt 0:01:07]} 51. Ke1 {[%emt 0:00:00]} Bc3+ {[%emt 0:01:42]} 52. Kd1 {[%emt 0:00:00]} Rxe2 {[%emt 0:00:31]} 53. Kxe2 {[%emt 0:00:00]} Bxa5 {[%emt 0:00:07]} 54. Nb7 {[%emt 0:00:00]} Bc7 {[%emt 0:00:51]} 55. Be7 {[%emt 0:00:00]} Kg7 {[%emt 0:00:39]} 56. Bd8 {[%emt 0:00:00]} Bb8 {[%emt 0:00:31]} 57. Bb6 {[%emt 0:00:00]} Kf6 {[%emt 0:00:57]} 58. Nd8 {[%emt 0:00:00]} Ke7 {[%emt 0:02:45]} 59. Nxc6+ {[%emt 0:00:00]} Kd7 {[%emt 0:00:07]} 60. Nb4 {[%emt 0:00:00]} h5 {[%emt 0:01:49]} 61. Be3 {[%emt 0:00:00]} d4 {[%emt 0:01:16]} 62. Bxd4 {[%emt 0:00:00]} g5 {[%emt 0:00:07]} 63. Be3 {[%emt 0:00:00]} g4 {[%emt 0:00:15]} 64. a5 {[%emt 0:02:32]} Bc7 {[%emt 0:01:14]} 65. a6 {[%emt 0:00:21]} Kc8 {[%emt 0:00:20]} 66. Nd5 {[%emt 0:06:38]} Bd8 {[%emt 0:00:52]} 67. Bf4 {[%emt 0:03:09]} h4 {[%emt 0:00:22]} 68. Kf2 {[%emt 0:00:26]} Ba5 {[%emt 0:00:28]} 69. Kg2 {[%emt 0:00:25]} Bd8 {[%emt 0:00:44]} 70. Be5 {[%emt 0:02:41]} Ba5 {[%emt 0:00:31]} 71. Ne7+ {[%emt 0:00:38]} Kd7 {[%emt 0:00:10]} 72. a7 {[%emt 0:00:07]} h3+ {[%emt 0:00:06]} 73. Kh2 {[%emt 0:00:08]} 1-0

[Event "GER-ch-Seniors-50 2019"]
[Site "Radebeul"]
[Date "2019.05.02"]
[Round "7.1"]
[White "Stahr, Ralf-Peter"]
[Black "Metz, Hartmut"]
[Result "1/2-1/2"]
[ECO "A11"]
[WhiteElo "2160"]
[BlackElo "2251"]
[Annotator "NA"]
[PlyCount "76"]
[EventDate "2019.04.26"]
[EventType "swiss"]
[EventCountry "GER"]
[SourceTitle "playchess.com"]
[Source "ChessBase"]
[SourceQuality "1"]
[TimeControl "40/5400+30:1800+30"]

{[%evp 8,73,25,32767,27,30,32767,16,17,-10,-18,-48,-45,-43,-44,-29,-36,-28,-32,-38,-22,-33,32767,32767,0,-79,32767,32767,-108,32767,-96,-128,-106,-115,-132,32767,32767,32767,-127,-122,-37,-30,-24,-24,32767,32767,32767,32767,0,0,0,0,32767,0,65,7,32767,32767,32767,140,161,32767,32767,32767,32767,32767,32767,-432]} 1. c4 {[%emt 0:00:00]} c6 {[%emt 0:00:00]} 2. Nc3 {[%emt 0:00:00]} d5 {[%emt 0:00:00]} 3. e3 {[%emt 0:00:00]} Nf6 {[%emt 0:00:00]} 4. Nf3 {[%emt 0:00:05]} a6 {[%emt 0:04:00]} 5. d4 {[%emt 0:12:47]} Bf5 {[%emt 0:03:35]} 6. Qb3 {[%emt 0:01:20]} Ra7 {[%emt 0:03:05] D15: Slav Defence: 4 Nc3 a6 and gambit lines after 4 Nc3 dxc4} 7. cxd5 {[%emt 0:07:01]} (7. Nh4 Bc8 8. Bd2 e6 9. c5 Nbd7 10. Nf3 e5 11. Nxe5 Nxe5 12. dxe5 Nd7 13. Na4 Bxc5 14. Nxc5 Nxc5 {0-1 (84) Radjabov,T (2757)-Fedoseev,V (2724) Wijk aan Zee 2019}) 7... cxd5 {[%emt 0:00:06]} 8. a4 {[%emt 0:00:19]} Nc6 {[%emt 0:00:29]} 9. Bd2 $146 {[%emt 0:09:53]} ({Predecessor:} 9. Ne5 e6 10. Bd3 Bxd3 11. Nxd3 Bd6 12. O-O h5 13. f4 {½-½ (79) Mateos Cordero,F (1491)-Balsinde Montemayor,P (1810) Madrid 2012}) 9... e6 {[%emt 0:01:12]} 10. Be2 {[%emt 0:01:30]} Bd6 {[%emt 0:01:02]} 11. O-O {[%emt 0:01:28]} O-O {[%emt 0:01:08]} 12. Rfc1 {[%emt 0:02:09]} h6 {[%emt 0:14:12]} 13. h3 {[%emt 0:01:30]} Na5 {[%emt 0:03:58]} 14. Qa2 {[%emt 0:01:14]} Qb6 {[%emt 0:05:49]} 15. b4 {[%emt 0:24:43]} Bxb4 {[%emt 0:04:59]} 16. Ne5 {[%emt 0:03:30]} (16. Qb2 $11 Nc6 17. Ne5) 16... Bd6 {[%emt 0:05:59]} 17. Bd3 {[%emt 0:10:36]} Bxd3 {[%emt 0:10:24]} 18. Nxd3 {[%emt 0:00:05]} Qd8 {[%emt 0:05:43]} 19. Ne5 {[%emt 0:02:17]} Bxe5 {[%emt 0:09:46]} 20. dxe5 {[%emt 0:02:56]} Nd7 {[%emt 0:00:01]} 21. f4 {[%emt 0:03:38]} Nc4 {[%emt 0:02:15]} 22. Nd1 {[%emt 0:00:29]} Nxd2 {[%emt 0:06:07]} 23. Qxd2 {[%emt 0:00:02]} Nb6 {[%emt 0:00:24]} (23... b6 $17 24. a5 Rc7) 24. Qd4 {[%emt 0:00:59]} Ra8 {[%emt 0:00:20]} 25. Rab1 {[%emt 0:01:15]} Nc4 {[%emt 0:00:32]} 26. Rxb7 {[%emt 0:00:15]} Qa5 {[%emt 0:00:33]} 27. Nc3 {[%emt 0:02:47]} Rac8 {[%emt 0:02:08]} 28. f5 {[%emt 0:01:03]} Qc5 {[%emt 0:02:23]} 29. fxe6 {[%emt 0:01:39]} fxe6 {[%emt 0:00:44]} 30. Ne2 {[%emt 0:01:08]} Rc7 {[%emt 0:02:23]} (30... Rf7 $11 31. Rxf7 Kxf7) 31. Rxc7 {[%emt 0:02:41]} (31. Qxc5 $14 Rxc5 32. Nf4) 31... Qxc7 {[%emt 0:00:01]} 32. e4 {[%emt 0:00:11]} Rd8 {[%emt 0:07:27] [#]} 33. exd5 $1 {[%emt 0:00:46]} exd5 {[%emt 0:00:16]} 34. Nf4 {[%emt 0:03:06]} Qa5 {[%emt 0:02:11]} 35. Ne6 Re8 36. Qg4 Re7 37. Rf1 $19 (37. Rb1 $16 {is forced if you want to stay better.} Nb2 38. Nd4) 37... Rd7 38. Rd1 Rd8 1/2-1/2

[Event "GER-ch-Seniors-50 2019"]
[Site "Radebeul"]
[Date "2019.05.02"]
[Round "7.4"]
[White "Mueller, Michael"]
[Black "Redzepovic, Irfan"]
[Result "1-0"]
[ECO "A46"]
[WhiteElo "2163"]
[BlackElo "2075"]
[Annotator "NA"]
[PlyCount "93"]
[EventDate "2019.04.26"]
[EventType "swiss"]
[EventCountry "GER"]
[SourceTitle "playchess.com"]
[Source "ChessBase"]
[SourceQuality "1"]
[TimeControl "40/5400+30:1800+30"]

1. d4 {[%emt 0:00:00]} Nf6 2. Nf3 e6 {[%emt 0:00:00]} 3. Bf4 {[%emt 0:00:00]} b6 {[%emt 0:00:12]} 4. e3 {[%emt 0:00:07]} Bb7 {[%emt 0:00:04]} 5. Bd3 {[%emt 0:00:15]} Be7 {[%emt 0:01:49]} 6. Nbd2 {[%emt 0:00:19]} Nh5 {[%emt 0:01:35]} 7. Bg3 {[%emt 0:00:31]} c5 {[%emt 0:02:00]} 8. c3 {[%emt 0:00:30]} Nc6 {[%emt 0:02:29] A47: 1 d4 Nf6 2 Nf3 b6: Torre, London and Colle Systems} 9. Qe2 {[%emt 0:00:38]} a6 {[%emt 0:02:12]} 10. a3 {[%emt 0:00:45]} b5 $146 {[%emt 0:02:35]} ({Predecessor:} 10... Nxg3 11. hxg3 d5 12. b4 Qc7 13. bxc5 bxc5 {0-1 (109) Mueller,M (2146)-Moiseenko,A (2670) Karlsruhe 2017}) 11. dxc5 {[%emt 0:02:01]} Bxc5 {[%emt 0:00:59]} 12. Ne4 {[%emt 0:01:19]} Nxg3 {[%emt 0:00:46]} 13. hxg3 {[%emt 0:00:11]} Be7 {[%emt 0:00:06]} 14. g4 {[%emt 0:01:31]} Rc8 {[%emt 0:04:38]} 15. Rd1 {[%emt 0:03:41]} d5 {[%emt 0:01:38]} 16. Ned2 {[%emt 0:01:55]} Qb6 {[%emt 0:01:11]} 17. Nb3 {[%emt 0:01:31]} Kf8 {[%emt 0:06:17] [#]} 18. e4 $1 {[%emt 0:03:54]} Nb8 {[%emt 0:10:30]} 19. e5 {[%emt 0:02:49]} g6 {[%emt 0:03:30]} 20. Qd2 {[%emt 0:03:09]} Kg8 {[%emt 0:00:54]} 21. Qf4 {[%emt 0:08:46]} Qd8 {[%emt 0:00:46]} 22. Ke2 {[%emt 0:02:30]} Nd7 {[%emt 0:01:47]} 23. Nbd4 {[%emt 0:01:12]} Nc5 {[%emt 0:03:50]} 24. Bc2 {[%emt 0:00:44]} Qc7 {[%emt 0:07:48]} 25. Qe3 {[%emt 0:05:03]} Nd7 {[%emt 0:01:31]} 26. Kf1 {[%emt 0:06:16]} Bf8 {[%emt 0:01:02]} 27. Re1 {[%emt 0:00:24]} Bg7 {[%emt 0:00:12]} 28. g3 {[%emt 0:00:34]} Nb6 {[%emt 0:00:45]} 29. Re2 {[%emt 0:02:43]} ({White should play} 29. Nd2 $14) 29... Nc4 {[%emt 0:00:07]} 30. Qf4 {[%emt 0:00:59]} (30. Qg5 $15) 30... Nxb2 {[%emt 0:02:17]} 31. Bxg6 {[%emt 0:00:36]} hxg6 {[%emt 0:00:06]} 32. Rxh8+ {[%emt 0:00:12]} Bxh8 {[%emt 0:00:11]} 33. Rxb2 {[%emt 0:00:47]} Qxc3 {[%emt 0:00:16]} 34. Rd2 {[%emt 0:04:34]} Qxa3 {[%emt 0:02:14]} 35. Kg2 {[%emt 0:04:11]} Qe7 {[%emt 0:00:41]} 36. g5 {[%emt 0:00:36]} Qb4 {[%emt 0:05:33]} 37. Nh2 {[%emt 0:01:36]} Qb1 {[%emt 0:00:15]} 38. Re2 {[%emt 0:00:47]} Qc1 $2 {[%emt 0:05:33]} (38... b4 $11 {and Black has nothing to worry.} 39. Ng4 Bg7 40. Nh6+ Bxh6 41. gxh6 {[#]} g5 $1 {[%mdl 512]} 42. Qxg5+ Qg6) 39. Qh4 {[%emt 0:01:58]} Bg7 {[%emt 0:01:50]} 40. Ng4 {[%emt 0:00:41]} Rc7 $18 {[%emt 0:07:08]} (40... Kf8 $17 41. Qh7 Qxg5) 41. Nf6+ {[%emt 0:30:57]} Kf8 {[%emt 0:33:18]} 42. Qh7 {[%emt 0:00:56]} Bxf6 {[%emt 0:00:14]} 43. exf6 {[%emt 0:00:36]} Ke8 {[%emt 0:00:11]} 44. Qg8+ {[%emt 0:00:13]} Kd7 {[%emt 0:00:35]} 45. Qxf7+ {[%emt 0:00:17]} Kd6 {[%emt 0:00:34]} 46. Qf8+ {[%emt 0:00:11]} Kd7 {[%emt 0:00:11]} 47. Qe7+ {Qb1 Kf3+ Rc1} 1-0